bitfinex-derivatives/quotes_SOLF0:USTF0_20260207
["timestamp","ask_amount","ask_price","bid_price","bid_amount"]
[1770506907871,3.76336672,87.366,87.321,3.58117867]
[1770506908168,12.27661896,87.365,87.321,3.58117867]
[1770506908365,8.51325224,87.364,87.321,3.58117867]
[1770506908562,3.76336672,87.365,87.325,3.58117867]
[1770506908767,8.51198203,87.364,87.325,3.58117867]
[1770506908961,3.76336672,87.365,87.325,3.58117867]
[1770506909471,8.51227041,87.364,87.325,3.58117867]
[1770506909675,3.76336672,87.365,87.325,3.58117867]
[1770506909970,8.51227041,87.364,87.329,10.3127]
[1770506910270,3.76336672,87.365,87.329,13.89387867]
[1770506910471,8.51255182,87.364,87.329,13.89387867]
[1770506910667,3.76336672,87.365,87.329,13.89387867]
[1770506910859,8.51271114,87.364,87.329,13.89387867]
[1770506911062,3.76336672,87.376,87.334,3.58117867]
[1770506911660,3.76336672,87.376,87.34,3.81467115]
[1770506911866,3.76336672,87.376,87.334,3.58117867]
[1770506912367,3.76336672,87.374,87.334,3.58117867]
[1770506913371,3.76336672,87.374,87.341,3.58117867]
[1770506913576,10.3043,87.402,87.341,3.58117867]
[1770506913577,3.76336672,87.396,87.35,3.81467115]
[1770506913876,3.76336672,87.394,87.341,3.58117867]
[1770506914073,3.76336672,87.392,87.341,3.58117867]
[1770506914273,3.76336672,87.39,87.341,3.58117867]
[1770506914473,3.76336672,87.388,87.341,3.58117867]
[1770506914667,3.76336672,87.386,87.342,10.3112]
[1770506914872,3.76336672,87.384,87.342,10.3112]
[1770506915074,3.76336672,87.382,87.342,10.3112]
[1770506915265,8.51301819,87.381,87.342,10.3112]
[1770506915464,8.51301819,87.38,87.342,10.3112]
[1770506915672,3.76336672,87.382,87.342,10.3112]
[1770506915979,3.84394149,87.399,87.351,3.70561483]
[1770506916278,3.84394149,87.397,87.351,3.70561483]
[1770506916469,3.84394149,87.395,87.351,3.70561483]
[1770506916665,3.84394149,87.393,87.354,10.3097]
[1770506916869,3.84394149,87.392,87.354,10.3097]
[1770506917376,3.84394149,87.389,87.34,3.70561483]
[1770506917578,3.84394149,87.387,87.34,3.70561483]
[1770506917776,3.84394149,87.379,87.34,3.70561483]
[1770506917977,3.84394149,87.377,87.33,3.81467115]
[1770506918174,3.84394149,87.375,87.331,3.70561483]
[1770506919174,3.84394149,87.388,87.351,3.70561483]
[1770506919371,8.51284083,87.387,87.351,3.70561483]
[1770506919579,3.84394149,87.388,87.351,3.70561483]
[1770506921475,3.84394149,87.388,87.355,10.3096]
[1770506923975,3.84394149,87.388,87.351,3.70561483]
[1770506924178,8.51325153,87.387,87.351,3.70561483]
[1770506924475,8.51325153,87.386,87.352,10.3101]
[1770506924676,3.84394149,87.388,87.352,10.3101]
[1770506925475,3.81467115,87.41,87.292,181.1231]
[1770506925476,3.84394149,87.401,87.36,7.52028598]
[1770506925681,3.84394149,87.401,87.361,3.70561483]
[1770506925870,3.84394149,87.419,87.361,3.70561483]
[1770506926072,3.914e-05,87.418,87.382,3.70561483]
[1770506926277,3.84394149,87.431,87.335,34.53]
[1770506926278,3.84394149,87.431,87.39,7.52028598]
[1770506927979,3.84394149,87.431,87.39,3.70561483]
[1770506929184,3.84394149,87.429,87.378,3.70561483]
[1770506929483,13.8952975,87.463,87.378,3.70561483]
[1770506929484,3.84394149,87.419,87.378,3.70561483]
[1770506929684,3.84394149,87.409,87.36,7.52028598]
[1770506929881,3.84394149,87.409,87.361,3.70561483]
[1770506932693,3.84394149,87.409,87.363,3.70561483]
[1770506933887,3.84394149,87.409,87.371,3.70561483]
[1770506934292,3.84394149,87.421,87.38,7.52028598]
[1770506934587,3.84394149,87.421,87.38,3.70561483]
[1770506936088,3.84394149,87.421,87.38,7.52028598]
[1770506936284,3.84394149,87.421,87.381,3.70561483]
[1770506937584,3.84394149,87.432,87.383,3.70561483]
[1770506938186,3.84394149,87.43,87.383,3.70561483]
[1770506938383,12.31868271,87.429,87.383,3.70561483]
[1770506938584,8.47474122,87.428,87.383,3.70561483]
[1770506938894,8.47474122,87.427,87.383,3.70561483]
[1770506939095,8.47474122,87.426,87.383,3.70561483]
[1770506939291,8.47474122,87.425,87.383,3.70561483]
[1770506939495,3.84394149,87.428,87.383,3.70561483]
[1770506939794,8.46744079,87.427,87.383,3.70561483]
[1770506939996,8.46744079,87.426,87.383,3.70561483]
[1770506940196,8.46744079,87.425,87.383,3.70561483]
[1770506940396,3.84394149,87.428,87.393,10.3052]
[1770506940596,3.84394149,87.443,87.401,3.70561483]
[1770506940898,8.4702682,87.442,87.401,3.70561483]
[1770506941194,10.42422263,87.464,87.415,10.3026]
[1770506941796,3.80740041,87.46,87.415,10.3026]
[1770506941996,3.80740041,87.46,87.404,10.3039]
[1770506942598,3.80740041,87.46,87.41,3.70561483]
[1770506942795,3.80740041,87.46,87.41,7.51301524]
[1770506942991,1.98431924,87.459,87.41,7.51301524]
[1770506943193,1.98431924,87.459,87.411,3.70561483]
[1770506943592,1.98431924,87.459,87.415,10.3026]
[1770506943793,1.98431924,87.459,87.421,3.70561483]
[1770506944195,2.02404736,87.479,87.435,10.3002]
[1770506944390,13.8952975,87.495,87.42,3.80740041]
[1770506944391,2.02404736,87.469,87.421,3.70561483]
[1770506945796,2.02404736,87.469,87.425,10.3015]
[1770506946097,2.01636559,87.459,87.405,3.85740132]
[1770506946398,1.93765557,87.449,87.405,3.85740132]
[1770506949196,1.93765557,87.449,87.408,10.3035]
[1770506949400,1.94119252,87.462,87.411,3.85740132]
[1770506950499,10.42422263,87.479,87.411,3.85740132]
[1770506950500,1.97361797,87.459,87.411,3.85740132]
[1770506950697,3.80740041,87.45,87.411,3.85740132]
[1770506950904,5.78101838,87.45,87.411,3.85740132]
[1770506951402,1.97361797,87.449,87.411,3.85740132]
[1770506952198,1.94910242,87.439,87.395,3.67656146]
[1770506953501,1.94910242,87.439,87.397,3.67656146]
[1770506957801,1.99493581,87.452,87.404,3.67656146]
[1770506958007,1.99493581,87.449,87.404,3.67656146]
[1770506958208,1.97394744,87.447,87.404,3.67656146]
[1770506958401,10.3614293,87.446,87.404,3.67656146]
[1770506958607,8.38748186,87.445,87.404,3.67656146]
[1770506958810,1.97394744,87.446,87.404,3.67656146]
[1770506959011,1.97394744,87.444,87.404,3.67656146]
[1770506959198,1.97394744,87.442,87.404,3.67656146]
[1770506959402,1.97394744,87.44,87.404,3.67656146]
[1770506960097,1.97394744,87.438,87.39,3.67656146]
[1770506960300,1.97001256,87.436,87.39,3.67656146]
[1770506960499,1.97001256,87.434,87.39,3.67656146]
[1770506960705,8.38932764,87.433,87.39,3.67656146]
[1770506960903,8.38932764,87.432,87.39,3.67656146]
[1770506961103,8.38932764,87.431,87.39,3.67656146]
[1770506961300,1.97001256,87.429,87.377,3.67656146]
[1770506961500,3.80740041,87.42,87.377,3.67656146]
[1770506961905,1.97001256,87.429,87.377,3.67656146]
[1770506962101,1.97001256,87.427,87.377,3.67656146]
[1770506962309,2.08571621,87.425,87.377,3.67656146]
[1770506962510,10.47791721,87.424,87.377,3.67656146]
[1770506962711,2.08571621,87.424,87.378,3.67656146]
[1770506963210,10.48184395,87.423,87.378,3.67656146]
[1770506963410,2.08571621,87.423,87.378,3.67656146]
[1770506963606,10.42422263,87.446,87.381,3.67656146]
[1770506963813,2.08571621,87.439,87.391,3.67656146]
[1770506964017,2.08571621,87.437,87.391,3.67656146]
[1770506964211,2.08571621,87.435,87.391,3.67656146]
[1770506964406,8.39776353,87.434,87.391,3.67656146]
[1770506964712,8.39776353,87.433,87.391,3.67656146]
[1770506964912,8.39776353,87.432,87.391,3.67656146]
[1770506965207,8.40259236,87.431,87.391,3.67656146]
[1770506965409,8.40259236,87.43,87.391,3.67656146]
[1770506965712,2.08571621,87.435,87.391,3.67656146]
[1770506966005,8.40331099,87.434,87.391,3.67656146]
[1770506966211,8.40331099,87.433,87.391,3.67656146]
[1770506966408,8.40331099,87.432,87.391,3.67656146]
[1770506966606,8.40331099,87.431,87.391,3.67656146]
[1770506966810,8.40331099,87.43,87.391,3.67656146]
[1770506967008,8.40331099,87.429,87.391,3.67656146]
[1770506967313,8.40331099,87.428,87.391,3.67656146]
[1770506967514,8.40331099,87.427,87.391,3.67656146]
[1770506967706,8.40331099,87.426,87.391,3.67656146]
[1770506967907,2.08571621,87.435,87.391,3.67656146]
[1770506968215,8.40834292,87.434,87.391,3.67656146]
[1770506968415,8.40834292,87.433,87.391,3.67656146]
[1770506968616,8.40834292,87.432,87.391,3.67656146]
[1770506968816,8.40834292,87.431,87.391,3.67656146]
[1770506969016,8.40834292,87.43,87.391,3.67656146]
[1770506969312,8.40834292,87.429,87.391,3.67656146]
[1770506969511,8.40834292,87.428,87.391,3.67656146]
[1770506969818,8.40834292,87.427,87.391,3.67656146]
[1770506970012,8.40834292,87.426,87.391,3.67656146]
[1770506970212,8.40834292,87.425,87.391,3.67656146]
[1770506970413,8.40834292,87.424,87.391,3.67656146]
[1770506970613,8.40834292,87.423,87.391,3.67656146]
[1770506970912,8.40834292,87.422,87.391,3.67656146]
[1770506971113,8.40834292,87.421,87.391,3.67656146]
[1770506971305,2.08571621,87.435,87.391,3.67656146]
[1770506971508,2.02841635,87.433,87.391,3.67656146]
[1770506971711,2.02841635,87.429,87.379,3.67656146]
[1770506971918,5.83581676,87.42,87.379,3.67656146]
[1770506972114,8.41361479,87.419,87.379,3.67656146]
[1770506972315,8.41361479,87.418,87.379,3.67656146]
[1770506972518,2.05858951,87.416,87.379,3.67656146]
[1770506972719,2.05858951,87.414,87.379,3.67656146]
[1770506972918,8.41361479,87.413,87.379,3.67656146]
[1770506973119,8.41361479,87.412,87.379,3.67656146]
[1770506973319,2.05858951,87.414,87.379,3.67656146]
[1770506973521,8.41173258,87.413,87.379,3.67656146]
[1770506973710,8.41173258,87.412,87.379,3.67656146]
[1770506973910,8.41173258,87.411,87.379,3.67656146]
[1770506974118,2.05858951,87.414,87.379,3.67656146]
[1770506974320,8.41131122,87.413,87.379,3.67656146]
[1770506974520,8.41131122,87.412,87.379,3.67656146]
[1770506974718,2.05858951,87.414,87.379,3.67656146]
[1770506974919,8.41131553,87.413,87.379,3.67656146]
[1770506975212,8.41131553,87.412,87.379,3.67656146]
[1770506975414,8.41131553,87.411,87.379,3.67656146]
[1770506975612,2.05858951,87.414,87.379,3.67656146]
[1770506975925,8.41224266,87.413,87.379,3.67656146]
[1770506976118,8.41224266,87.412,87.379,3.67656146]
[1770506976319,8.41224266,87.411,87.379,3.67656146]
[1770506976522,2.05858951,87.414,87.379,3.67656146]
[1770506976716,8.41523139,87.413,87.379,3.67656146]
[1770506977019,8.41523139,87.412,87.379,3.67656146]
[1770506977223,2.05858951,87.414,87.379,3.67656146]
[1770506977412,8.41682205,87.413,87.379,3.67656146]
[1770506977612,8.41682205,87.412,87.379,3.67656146]
[1770506977819,8.41682205,87.411,87.379,3.67656146]
[1770506978119,2.05858951,87.414,87.379,3.67656146]
[1770506978323,8.41810034,87.413,87.379,3.67656146]
[1770506978526,8.41810034,87.412,87.379,3.67656146]
[1770506978829,2.05858951,87.414,87.379,3.67656146]
[1770506978830,8.41810034,87.411,87.379,3.67656146]
[1770506979022,2.05858951,87.414,87.379,3.67656146]
[1770506979023,8.41810034,87.41,87.379,3.67656146]
[1770506979227,2.05858951,87.414,87.379,3.67656146]
[1770506979425,8.41982289,87.413,87.379,3.67656146]
[1770506979628,8.41982289,87.412,87.379,3.67656146]
[1770506979827,8.41982289,87.411,87.379,3.67656146]
[1770506980026,8.41982289,87.41,87.379,3.67656146]
[1770506980219,2.05858951,87.414,87.379,3.67656146]
[1770506980421,8.41989942,87.413,87.379,3.67656146]
[1770506980727,10.46657872,87.412,87.379,3.67656146]
[1770506980915,8.41989942,87.411,87.379,3.67656146]
[1770506981119,2.0466793,87.412,87.379,3.67656146]
[1770506981523,8.4203766,87.411,87.379,3.67656146]
[1770506981828,8.4203766,87.41,87.379,3.67656146]
[1770506982020,2.0466793,87.412,87.379,3.67656146]
[1770506982323,2.06119034,87.41,87.371,3.5725911]
[1770506982515,2.06119034,87.408,87.371,3.5725911]
[1770506982718,8.41963527,87.407,87.371,3.5725911]
[1770506982924,8.41963527,87.406,87.371,3.5725911]
[1770506983128,8.41963527,87.405,87.371,3.5725911]
[1770506983428,2.06119034,87.408,87.371,3.5725911]
[1770506983630,8.41819814,87.407,87.371,3.5725911]
[1770506983936,8.41819814,87.406,87.371,3.5725911]
[1770506984228,2.06119034,87.408,87.371,3.5725911]
[1770506984525,8.41736731,87.407,87.371,3.5725911]
[1770506984728,8.41736731,87.406,87.371,3.5725911]
[1770506985029,8.41736731,87.405,87.371,3.5725911]
[1770506985329,2.06119034,87.408,87.371,3.5725911]
[1770506985526,8.41673652,87.407,87.371,3.5725911]
[1770506985722,8.41673652,87.406,87.371,3.5725911]
[1770506985922,8.41673652,87.405,87.371,3.5725911]
[1770506986122,2.06119034,87.408,87.371,3.5725911]
[1770506986322,8.41633316,87.407,87.371,3.5725911]
[1770506986518,8.41633316,87.406,87.371,3.5725911]
[1770506986726,8.41633316,87.405,87.371,3.5725911]
[1770506986922,2.06119034,87.408,87.371,3.5725911]
[1770506987127,8.41633597,87.407,87.371,3.5725911]
[1770506987328,8.41633597,87.406,87.371,3.5725911]
[1770506987534,8.41633597,87.405,87.371,3.5725911]
[1770506987827,2.06119034,87.408,87.371,13.8803911]
[1770506988033,8.4160462,87.407,87.372,3.5725911]
[1770506988225,8.4160462,87.406,87.372,3.5725911]
[1770506988421,8.4160462,87.405,87.375,3.5725911]
[1770506988621,2.05140677,87.43,87.39,7.37999151]
[1770506988827,2.05140677,87.43,87.39,3.5725911]
[1770506989327,2.05140677,87.428,87.38,3.80740041]
[1770506989832,2.05140677,87.428,87.381,10.3066]
[1770506990228,2.04944237,87.427,87.381,10.3066]
[1770506991734,2.04944237,87.427,87.384,10.3063]
[1770506992734,2.04935965,87.419,87.375,3.5725911]
[1770506996138,2.03589904,87.409,87.345,10.3109]
[1770506996340,2.03589904,87.399,87.351,3.5725911]
[1770506996544,2.03589904,87.399,87.312,21.29251434]
[1770506996545,2.03589904,87.389,87.34,3.5725911]
[1770506997139,2.03589904,87.389,87.265,28.24685747]
[1770506997140,2.03589904,87.369,87.311,3.5725911]
[1770506997340,2.03589904,87.359,87.311,3.5725911]
[1770507000346,1.93762752,87.378,87.33,3.81401656]
[1770507000547,1.93762752,87.376,87.33,3.81401656]
[1770507000739,1.93762752,87.374,87.33,3.81401656]
[1770507000935,1.93762752,87.372,87.33,7.38660766]
[1770507001239,1.93762752,87.37,87.33,7.38660766]
[1770507001447,8.36526687,87.369,87.33,7.38660766]
[1770507001640,8.36526687,87.368,87.33,7.38660766]
[1770507001841,8.36526687,87.367,87.33,7.38660766]
[1770507002045,1.93762752,87.37,87.33,7.38660766]
[1770507002244,2.03668908,87.382,87.34,3.81401656]
[1770507002543,2.03668908,87.382,87.34,7.38660766]
[1770507005846,2.03668908,87.382,87.34,3.5725911]
[1770507006243,2.00698467,87.359,87.311,3.61847329]
[1770507006748,2.00698467,87.349,87.299,3.61847329]
[1770507006950,2.00698467,87.345,87.299,3.61847329]
[1770507007749,2.00698467,87.357,87.31,7.43248985]
[1770507007952,2.00698467,87.355,87.31,3.61847329]
[1770507008149,2.00698467,87.353,87.31,3.61847329]
[1770507008947,3.81401656,87.35,87.31,3.61847329]
[1770507009142,2.00698467,87.353,87.31,7.43248985]
[1770507009342,2.00698467,87.353,87.31,3.61847329]
[1770507009749,1.99343169,87.352,87.31,3.61847329]
[1770507011550,2.00682308,87.349,87.29,3.81401656]
[1770507011756,3.86901099,87.363,87.32,3.81401656]
[1770507012753,3.90923854,87.389,87.34,3.81401656]
[1770507012953,3.90923854,87.389,87.296,34.4]
[1770507012954,3.90923854,87.389,87.33,3.81401656]
[1770507013654,3.90923854,87.389,87.331,3.72951253]
[1770507013854,10.3075,87.375,87.331,3.72951253]
[1770507015350,10.3062,87.386,87.341,3.72951253]
[1770507015550,10.3062,87.386,87.351,3.72951253]
[1770507015760,13.8952975,87.432,87.351,3.72951253]
[1770507015761,3.90923854,87.401,87.36,3.81401656]
[1770507016253,3.90923854,87.401,87.361,3.72951253]
[1770507016958,10.3047,87.398,87.361,3.72951253]
[1770507019153,14.21253854,87.41,87.361,3.72951253]
[1770507019357,3.90923854,87.409,87.361,3.72951253]
[1770507020558,3.90923854,87.398,87.347,3.72951253]
[1770507020958,3.90923854,87.398,87.351,3.72951253]
[1770507022061,3.90923854,87.398,87.361,3.72951253]
[1770507023956,3.90923854,87.419,87.361,3.72951253]
[1770507024154,3.90923854,87.417,87.361,3.72951253]
[1770507024361,3.90923854,87.417,87.38,7.54352909]
[1770507026657,3.90923854,87.417,87.37,3.81401656]
[1770507026862,10.40703882,87.437,87.355,3.72951253]
[1770507026863,3.90923854,87.409,87.355,3.72951253]
[1770507027062,3.90923854,87.407,87.355,3.72951253]
[1770507027365,3.90923854,87.405,87.355,3.72951253]
[1770507027566,3.90923854,87.403,87.355,3.72951253]
[1770507027766,3.90923854,87.401,87.355,3.72951253]
[1770507027966,3.90923854,87.399,87.355,3.72951253]
[1770507028164,3.90923854,87.399,87.36,3.81401656]
[1770507028972,3.90923854,87.399,87.342,3.72951253]
[1770507029169,3.90923854,87.397,87.342,3.72951253]
[1770507029469,3.90923854,87.389,87.342,3.72951253]
[1770507030054,3.90923854,87.409,87.361,3.72951253]
[1770507030257,3.90923854,87.409,87.37,3.81401656]
[1770507030457,3.90923854,87.409,87.361,3.72951253]
[1770507031561,3.90923854,87.407,87.361,3.72951253]
[1770507031759,3.90923854,87.405,87.361,3.72951253]
[1770507031964,3.90923854,87.403,87.361,3.72951253]
[1770507032167,12.28661475,87.402,87.361,3.72951253]
[1770507032462,3.90923854,87.402,87.361,3.72951253]
[1770507032664,3.90923854,87.399,87.347,3.72951253]
[1770507032962,3.90923854,87.397,87.347,3.72951253]
[1770507033156,3.90923854,87.395,87.35,3.81401656]
[1770507034770,3.90923854,87.395,87.347,3.72951253]
[1770507035466,3.90923854,87.395,87.34,3.81401656]
[1770507035659,3.93692179,87.369,87.327,3.85910105]
[1770507036572,3.93692179,87.339,87.297,3.85910105]
[1770507037369,10.3118,87.338,87.297,3.85910105]
[1770507037873,3.81401656,87.33,87.281,3.85910105]
[1770507038974,3.93692179,87.334,87.281,3.85910105]
[1770507039563,10.3124,87.333,87.281,3.85910105]
[1770507040165,3.93692179,87.339,87.285,3.85910105]
[1770507040674,3.93692179,87.337,87.285,3.85910105]
[1770507040871,3.93692179,87.315,87.27,3.81401656]
[1770507041172,3.81401656,87.31,87.263,3.85910105]
[1770507041474,3.93692179,87.315,87.263,3.85910105]
[1770507042174,10.3152,87.309,87.271,3.85910105]
[1770507042376,3.93692179,87.329,87.28,3.81401656]
[1770507042775,3.93692179,87.329,87.281,3.85910105]
[1770507042975,3.93692179,87.343,87.301,3.85910105]
[1770507044878,10.3106,87.348,87.275,10.3192]
[1770507044879,10.3106,87.348,87.31,7.67311761]
[1770507045379,10.3106,87.348,87.31,3.85910105]
[1770507045582,3.93692179,87.357,87.31,3.85910105]
[1770507045776,10.309,87.361,87.31,3.85910105]
[1770507047884,3.93692179,87.37,87.31,3.85910105]
[1770507048083,3.93692179,87.37,87.311,3.85910105]
[1770507048982,10.3065,87.383,87.311,3.85910105]
[1770507049785,14.24342179,87.383,87.311,3.85910105]
[1770507050787,3.93692179,87.382,87.314,3.85910105]
[1770507051691,3.93692179,87.382,87.318,10.3141]
[1770507051881,3.93692179,87.382,87.319,3.85910105]
[1770507053883,3.93692179,87.382,87.321,3.85910105]
[1770507057290,10.40703882,87.405,87.321,3.85910105]
[1770507057291,3.93692179,87.379,87.321,3.85910105]
[1770507057587,3.93692179,87.377,87.321,3.85910105]
[1770507057793,3.93692179,87.375,87.321,3.85910105]
[1770507058786,9.53427394,87.41,87.321,3.85910105]
[1770507058787,3.93692179,87.373,87.321,3.85910105]
[1770507059900,3.93692179,87.371,87.321,3.85910105]
[1770507060402,3.93692179,87.384,87.321,3.85910105]
[1770507061396,3.93692179,87.384,87.323,3.85910105]
[1770507061598,3.93692179,87.382,87.323,3.85910105]
[1770507061799,3.93692179,87.38,87.323,3.85910105]
[1770507062005,3.93692179,87.378,87.323,3.85910105]
[1770507062306,3.93692179,87.37,87.323,3.85910105]
[1770507064407,3.93692179,87.368,87.323,3.85910105]
[1770507065801,10.3086,87.366,87.323,3.85910105]
[1770507067507,3.93692179,87.368,87.33,3.81279922]
[1770507069717,3.93692179,87.368,87.323,3.85910105]
[1770507070811,14.07358914,87.366,87.323,3.85910105]
[1770507074613,3.81778593,87.365,87.323,3.85910105]
[1770507076821,10.3089,87.363,87.323,3.85910105]
[1770507078115,3.81778593,87.365,87.323,3.85910105]
[1770507079018,3.81778593,87.365,87.33,3.81279922]
[1770507079213,3.81778593,87.375,87.331,3.94972562]
[1770507079414,3.81778593,87.371,87.331,3.94972562]
[1770507079713,3.81778593,87.371,87.221,35.38037153]
[1770507079714,3.81778593,87.369,87.32,3.94972562]
[1770507079919,3.81778593,87.367,87.32,3.94972562]
[1770507080118,3.81778593,87.365,87.32,3.94972562]
[1770507080322,3.81778593,87.363,87.32,3.94972562]
[1770507080528,3.81778593,87.361,87.32,3.94972562]
[1770507080718,3.81778593,87.355,87.308,3.94972562]
[1770507080921,3.81778593,87.353,87.308,3.94972562]
[1770507081120,3.81778593,87.351,87.308,3.94972562]
[1770507081320,3.81778593,87.349,87.308,3.94972562]
[1770507081722,10.3111,87.344,87.308,3.94972562]
[1770507083321,3.81778593,87.349,87.32,3.81279922]
[1770507088224,3.81778593,87.346,87.288,3.94972562]
[1770507088428,20.811258,87.389,87.287,10.3177]
[1770507088429,12.25603452,87.345,87.301,3.94972562]
[1770507088630,8.43824859,87.344,87.301,3.94972562]
[1770507088929,12.25603452,87.343,87.301,3.94972562]
[1770507089226,3.81778593,87.343,87.301,3.94972562]
[1770507089436,10.3126,87.331,87.291,3.94972562]
[1770507090332,8.43507409,87.33,87.291,3.94972562]
[1770507090541,10.3126,87.331,87.291,3.94972562]
[1770507090831,8.43507323,87.33,87.291,3.94972562]
[1770507091031,10.3126,87.331,87.291,3.94972562]
[1770507091429,14.13088593,87.327,87.291,3.94972562]
[1770507091631,3.81778593,87.325,87.28,3.81279922]
[1770507092424,3.81778593,87.324,87.28,3.81279922]
[1770507093834,3.81778593,87.319,87.28,3.81279922]
[1770507095738,13.88758192,87.318,87.28,3.81279922]
[1770507096332,3.57348192,87.317,87.28,3.81279922]
[1770507098131,3.57348192,87.317,87.276,3.94972562]
[1770507098637,3.57348192,87.314,87.276,3.94972562]
[1770507099745,3.57348192,87.312,87.276,3.94972562]
[1770507099933,3.57348192,87.33,87.291,3.85540209]
[1770507101741,3.57348192,87.328,87.291,3.85540209]
[1770507102233,3.57348192,87.345,87.31,3.81279922]
[1770507102433,3.57348192,87.359,87.321,3.85540209]
[1770507102636,8.41704565,87.358,87.321,3.85540209]
[1770507102834,8.41704565,87.357,87.321,3.85540209]
[1770507103035,3.57348192,87.359,87.321,3.85540209]
[1770507103238,8.41677745,87.358,87.321,3.85540209]
[1770507103538,3.57348192,87.359,87.321,3.85540209]
[1770507103539,8.41677745,87.357,87.321,3.85540209]
[1770507103742,3.57348192,87.359,87.321,3.85540209]
[1770507104039,8.41738087,87.358,87.321,3.85540209]
[1770507104238,8.41738087,87.357,87.321,3.85540209]
[1770507104441,8.41738087,87.356,87.33,3.81279922]
[1770507104738,3.57348192,87.359,87.33,3.81279922]
[1770507108043,3.57348192,87.359,87.321,3.85540209]
[1770507108536,3.57348192,87.357,87.311,3.85540209]
[1770507111146,3.57348192,87.355,87.311,3.85540209]
[1770507111350,3.57348192,87.353,87.3,7.66820131]
[1770507111541,3.57348192,87.353,87.284,10.3181]
[1770507111542,3.57348192,87.349,87.301,3.85540209]
[1770507111743,3.57348192,87.347,87.301,3.85540209]
[1770507111942,3.57348192,87.345,87.301,3.85540209]
[1770507112243,3.57348192,87.343,87.301,3.85540209]
[1770507112443,3.57348192,87.341,87.301,3.85540209]
[1770507112749,10.3123,87.334,87.301,3.85540209]
[1770507114949,10.3123,87.334,87.301,2.09e-06]
[1770507115444,10.313,87.328,87.29,3.81279922]
[1770507115650,10.313,87.328,87.249,302.62092397]
[1770507115651,3.57348192,87.327,87.28,3.81279922]
[1770507115847,3.57348192,87.327,87.27,3.81279922]
[1770507116045,3.57348192,87.314,87.27,3.81279922]
[1770507116952,3.57348192,87.314,87.271,3.85540209]
[1770507118247,3.57348192,87.339,87.3,3.81279922]
[1770507118454,3.57348192,87.337,87.3,3.81279922]
[1770507118654,3.57348192,87.337,87.291,3.85540209]
[1770507119758,3.57348192,87.335,87.291,3.85540209]
[1770507119950,3.57348192,87.335,87.3,3.81279922]
[1770507120451,3.57348192,87.335,87.274,10.3192]
[1770507120452,10.3109,87.346,87.311,3.85540209]
[1770507120651,8.42208406,87.345,87.311,3.85540209]
[1770507120848,10.3109,87.346,87.311,3.85540209]
[1770507123255,3.57348192,87.347,87.311,3.85540209]
[1770507123755,3.57348192,87.371,87.331,3.85540209]
[1770507123962,8.42615571,87.37,87.331,3.85540209]
[1770507124156,3.57348192,87.371,87.331,3.85540209]
[1770507124357,8.42733305,87.37,87.331,3.85540209]
[1770507124558,3.57348192,87.371,87.331,3.85540209]
[1770507124754,8.42733305,87.37,87.331,3.85540209]
[1770507125059,3.57348192,87.371,87.331,3.85540209]
[1770507126962,3.57348192,87.371,87.34,3.81407659]
[1770507127563,3.57348192,87.371,87.331,3.85540209]
[1770507128166,3.57348192,87.371,87.34,3.81407659]
[1770507128363,13.97039874,87.415,87.34,3.81407659]
[1770507128364,3.90261637,87.383,87.34,7.65443376]
[1770507128868,3.90261637,87.383,87.35,3.81407659]
[1770507129068,10.3057,87.39,87.35,7.65443376]
[1770507129368,3.90261637,87.394,87.36,3.81407659]
[1770507130165,3.90261637,87.406,87.38,3.81407659]
[1770507130465,3.90261637,87.412,87.37,3.81407659]
[1770507130660,3.90261637,87.41,87.36,3.81407659]
[1770507130868,3.90261637,87.399,87.348,3.84035717]
[1770507131068,3.90261637,87.397,87.348,3.84035717]
[1770507131262,13.97039874,87.429,87.336,3.84035717]
[1770507131263,3.90261637,87.378,87.336,3.84035717]
[1770507132868,3.92438176,87.376,87.336,3.84035717]
[1770507133267,3.92438176,87.388,87.341,3.68565388]
[1770507133869,3.92438176,87.386,87.341,3.68565388]
[1770507134765,3.92438176,87.384,87.341,3.68565388]
[1770507135866,3.92438176,87.38,87.341,3.68565388]
[1770507137075,3.92438176,87.378,87.33,3.81407659]
[1770507137269,3.92438176,87.378,87.33,3.68565388]
[1770507137675,3.92438176,87.378,87.33,7.49973047]
[1770507138274,3.92438176,87.378,87.331,3.68565388]
[1770507138775,10.3074,87.376,87.331,3.68565388]
[1770507138970,14.23178176,87.376,87.331,3.68565388]
[1770507140570,10.3074,87.376,87.341,3.68565388]
[1770507142781,10.3074,87.376,87.33,3.81407659]
[1770507142782,3.92438176,87.373,87.33,3.68565388]
[1770507143876,3.92438176,87.367,87.33,3.68565388]
[1770507144875,3.81407659,87.38,87.33,3.68565388]
[1770507144876,14.23288176,87.366,87.33,3.68565388]
[1770507145077,22.8033697,87.417,87.319,3.68565388]
[1770507145078,3.92438176,87.365,87.319,3.68565388]
[1770507145486,10.3097,87.356,87.319,3.68565388]
[1770507145675,3.92438176,87.363,87.319,3.68565388]
[1770507146673,14.23358176,87.36,87.319,3.68565388]
[1770507146881,3.92438176,87.359,87.319,3.68565388]
[1770507149179,3.92438176,87.356,87.319,3.68565388]
[1770507150583,3.92438176,87.356,87.301,3.68565388]
[1770507150778,3.92438176,87.352,87.301,3.68565388]